Cogmind - Beta 16.1 @@@ ROGUE MODE // 2026.04.07 @ 19:27:55 Player: WarMechanic Result: Destroyed by Y-45 Defender with Heavy Assault Rifle Performance ------------- Evolutions (1) 500 Regions Visited (2) 400 Robots Destroyed (37) 185 Value Destroyed (835) 835 Prototype IDs (1) 20 Alien Tech Used (0) 0 Bonus (0) 0 TOTAL SCORE: 1940 Bonus ------- None Cogmind --------- Core Integrity 0/400 Matter 69/300 Energy 19/100 System Corruption 0% Temperature Cool (9) Movement Rolling (90) Location -9/Materials Parts ------- > --- POWER (1) -------- (None) > --- PROPULSION (2) --- Armored Wheel > --- UTILITY (4) ------ Trap Extractor (0/4) > --- WEAPON (2) ------- Maul > --- INVENTORY (5) ---- Grenade Launcher Mini Grenade Launcher Peak State ------------ > --- POWER ------------ Ion Engine > --- PROPULSION ------- Light Treads Armored Wheel > --- UTILITY ---------- High-capacity Storage Unit Seismic Detector ECM Suite > --- WEAPON ----------- Improved Assault Rifle Mini Grenade Launcher > --- INVENTORY -------- Light Treads Light Treads Light Treads Light Treads Light Treads Armored Wheel Armored Wheel Large Storage Unit ECM Suite ECM Suite Tractor Beam Trap Extractor Trap Extractor Trap Extractor Trap Extractor Improved Assault Rifle Grenade Launcher Mini Grenade Launcher Mini Grenade Launcher Mini Grenade Launcher [Rating: 15] Favorites ----------- Power Ion Engine Engine Ion Engine Propulsion Light Treads Treads Light Treads Wheel Armored Wheel Utility Seismic Detector Device Seismic Detector Storage Small Storage Unit Processor Transport Network Coupler Weapon Mini Grenade Launcher Ballistic Gun Light Assault Rifle Launcher Mini Grenade Launcher Impact Weapon Maul Special Melee Weapon Datajack Build | -11 -10 -9 ------- Run | Yrd Mat Mat Slots Evolved 2 | . . 2 Power . | . . . Propulsion . | . . . Utility 2 | . . 2 Weapon . | . . . Parts Attached 28 | 8 13 7 Power 2 | 1 1 . Engine 2 | 1 1 . Core . | . . . Reactor . | . . . Propulsion 9 | 3 3 3 Treads 4 | 1 1 2 Leg . | . . . Wheel 5 | 2 2 1 Hover . | . . . Flight . | . . . Utility 9 | 2 5 2 Device 5 | 1 2 2 Storage 3 | 1 2 . Processor 1 | . 1 . Hackware . | . . . Protection . | . . . Artifact . | . . . Weapon 8 | 2 4 2 Energy Gun . | . . . Energy Cannon . | . . . Ballistic Gun 3 | 2 . 1 Ballistic Cannon . | . . . Launcher 3 | . 3 . Special Weapon . | . . . Impact Weapon 1 | . . 1 Slashing Weapon . | . . . Piercing Weapon . | . . . Special Melee Weapon 1 | . 1 . Unidentified Prototypes 1 | . . 1 Parts Lost 7 | . 5 2 Power 1 | . . 1 Propulsion 3 | . 2 1 Utility . | . . . Weapon 3 | . 3 . Highest Loss Streak 3 | . 3 1 To Critical Strikes . | . . . Average Backups 10 | 5 10 12 Power . | . 1 . Propulsion 4 | 1 4 4 Utility 3 | 1 3 4 Weapon 1 | . 1 3 Tool/Special . | . . . Unused Backups 16 | . 4 12 Power . | . . . Propulsion 5 | . 1 4 Utility 7 | . 2 5 Weapon 4 | . 1 3 Tool/Special . | . . . Average Slot Usage (%) 87 | . 97 50 Engine 12 | . 14 5 Treads 12 | . 14 6 Wheel 12 | . 14 7 Device 13 | . 13 12 Storage 12 | . 14 5 Ballistic Gun 11 | . 13 3 Launcher 10 | . 11 8 Peak Build Rating 15 | 8 12 15 Average Rating 9 | 5 9 7 On Entrance 6 | . 8 12 Avg Prop Armor Cover (%) 13 | 14 13 12 Naked Turns 119 | . . 119 Heaviest Build 52 | 14 48 52 Greatest Support 20 | 20 20 12 Greatest Overweight (x) 4 | . 3 4 Average Overweight (x) 1 | . 1 1 Largest Inventory Capacity 20 | 8 20 20 Average Capacity 11 | 7 11 12 Most Carried 20 | 8 20 20 Average Carried 10 | 5 10 11 Final Capacity 20 | 8 20 5 Final Carried 20 | 8 20 2 Class Distribution -------------------- 100% | Mutant Dominant Class ---------------- Mutant | -10/Materials Mutant | -9/Materials Resources | -11 -10 -9 ----------- Run | Yrd Mat Mat Matter Collected 778 | 332 366 80 Remotely . | . . . Salvage Created 947 | 171 634 142 Parts 66 | 10 52 4 Haulers Intercepted 2 | . 2 . Recyclers Shooed . | . . . Parts Field Recycled . | . . . Retrieved Matter . | . . . Parts Self-Destructed . | . . . Prevented . | . . . Parts Restored . | . . . Kills | -11 -10 -9 ------- Run | Yrd Mat Mat Combat Hostiles Destroyed 24 | . 19 5 Melee 1 | . . 1 Guns 14 | . 14 . AOE 8 | . 5 3 Classes Destroyed 10 | 2 6 2 Worker 1 | . . 1 Builder 3 | . 2 1 Tunneler 3 | 3 . . Hauler 2 | . 2 . Recycler 1 | 1 . . Operator 2 | . 2 . Watcher 1 | . 1 . Swarmer 6 | . 6 . Grunt 16 | . 13 3 Sentry 2 | . . 2 Best Kill Streak 5 | 2 5 4 Combat Bots Only 5 | . 5 3 Max Kills in Single Turn 2 | 1 2 2 Gunslinging . | . . . Exploded 2 | . 2 1 Melee 1 | . . 1 Uniques/NPCs Destroyed . | . . . Combat | -11 -10 -9 -------- Run | Yrd Mat Mat Hostile Shots Fired 176 | . 99 77 Missed 46 | . 25 21 Hits 130 | . 74 56 Projectile 130 | . 74 56 Damage Taken 1684 | . 851 833 Core 592 | . 187 405 Absorbed by Shields . | . . . Core Remaining (%) 62 | 100 25 . Volleys Fired 113 | 13 96 4 Largest 2 | 2 2 2 Hottest 60 | 40 60 60 Shots Fired 179 | 26 145 8 Gun 153 | 26 127 . Cannon . | . . . Launcher 26 | . 18 8 Special . | . . . Kinetic 153 | 26 127 . Thermal . | . . . Explosive 26 | . 18 8 Electromagnetic . | . . . Robot Hit Streak 12 | 5 12 1 Robot Miss Streak 4 | 2 4 3 Penetration Max . | . . . Secondary Targets . | . . . Shots Hit Robots 104 | 16 81 7 Core Hits 69 | 6 49 14 Critical Kills . | . . . Critical Parts Destroyed 1 | . . 1 Critical Strikes 1 | . . 1 Smash 1 | . . 1 Melee Attacks 8 | . . 8 Impact 8 | . . 8 Slashing . | . . . Piercing . | . . . Sneak Attacks . | . . . Combat Hostiles . | . . . Follow-up Attacks . | . . . Damage Inflicted 2282 | 178 1377 727 Guns 982 | 178 804 . Cannons . | . . . Explosions 1054 | . 568 486 Melee 202 | . . 202 Ramming 44 | . 5 39 Kinetic 982 | 178 804 . Thermal . | . . . Explosive 1054 | . 568 486 Electromagnetic . | . . . Impact 202 | . . 202 Slashing . | . . . Piercing . | . . . Highest Corruption 1 | . 1 . Average Corruption 1 | . 1 . Corruption Purged . | . . . Corruption Blocked . | . . . Effects 7 | . 7 . Message Errors 2 | . 2 . Energy Discharges 3 | . 3 . Data Loss (minor) 1 | . 1 . Misfires 1 | . 1 . Overload Shots . | . . . Overflow Damage 78 | . 9 69 Projectiles . | . . . Explosions 28 | . 9 19 Melee 50 | . . 50 Knockbacks . | . . . Impact . | . . . Kinetic . | . . . Secondary . | . . . Self-Inflicted Damage 106 | . 91 15 Shots 3 | . 3 . Rammed 8 | . 2 6 Targets Rammed 9 | . 3 6 Kicked . | . . . Crushed 1 | . 1 . Highest Temperature 24 | . 12 24 Average Temperature 8 | . 6 15 Received Heat Transfer 588 | . 300 288 Siege Activations . | . . . Martial Activations . | . . . Shielding Activations . | . . . Robots Disrupted . | . . . Combat Hostiles . | . . . Robots Corrupted 1 | . . 1 Combat Hostiles 1 | . . 1 Parts Fried 1 | . . 1 Impact Corruptions 2 | . . 2 Robots Melted . | . . . Combat Hostiles . | . . . Parts Melted . | . . . Heat Transferred . | . . . Parts Sabotaged . | . . . Parts Stolen . | . . . Parts Stripped . | . . . Power Chain Reactions . | . . . Alert | -11 -10 -9 ------- Run | Yrd Mat Mat Maximum Alert Level . | . . . Low Security (%) 100 | 100 100 100 Level 1 . | . . . Level 2 . | . . . Level 3 . | . . . Level 4 . | . . . Level 5 . | . . . High Security . | . . . Max Security . | . . . Peak Influence 197 | 5 197 168 Initial 76 | . . 76 Average 88 | 1 91 116 Influence Increases 879 | 20 617 242 Destroy 0b10 Robot/C 480 | . 380 100 Destroy 0b10 Robot/NC 65 | 20 35 10 Destroy Leader 116 | . 86 30 Successful Hack 14 | . 14 . Disable Machine 30 | . 30 . Destroy Structure 99 | . 72 27 Partial Spotted 15 | . . 15 Lose Combat Pursuer 60 | . . 60 Influence Decreases 731 | 20 434 277 Entered New Map 107 | . . 107 Time Decay 554 | 20 384 150 Lost Part 70 | . 50 20 Squads Dispatched 6 | . 6 . Investigation 4 | . 4 . Extermination . | . . . Reinforcement 2 | . 2 . Assault . | . . . Garrison . | . . . Intercept . | . . . Searches Triggered . | . . . Construction Impeded . | . . . Haulers Reinforced . | . . . Active Scanning Responses . | . . . Cargo Convoy Interrupts . | . . . Stealth | -11 -10 -9 --------- Run | Yrd Mat Mat Distress Signals 4 | . 1 3 Communications Jammed . | . . . Distress Signals . | . . . Times Spotted 44 | . 30 14 Peak Tracking Total 6 | . 6 6 Tactical Retreats 3 | . . 3 Traps | -11 -10 -9 ------- Run | Yrd Mat Mat Traps Triggered 3 | . 3 . Indirectly . | . . . Trap Hack Attempts . | . . . Triggered . | . . . Disarmed . | . . . Reprogrammed . | . . . Reused . | . . . Traps Extracted . | . . . Installed . | . . . Triggered . | . . . Machines | -11 -10 -9 ---------- Run | Yrd Mat Mat Machines Disabled 2 | . 2 . Max in Single Turn 1 | . 1 . Machines Repaired . | . . . Machines Dismantled . | . . . Machines Sabotaged . | . . . Overloaded Fab Kills . | . . . Hacking | -11 -10 -9 --------- Run | Yrd Mat Mat Machines Accessed 6 | . 6 . Terminals 5 | . 5 . Fabricators . | . . . Repair Stations . | . . . Recycling Units 1 | . 1 . Scanalyzers . | . . . Garrison Access . | . . . Total Hacks 19 | . 19 . Successful 5 | . 5 . Failed 14 | . 14 . Catastrophic 3 | . 3 . Database Lockouts . | . . . Manual 7 | . 7 . Terminals 15 | . 15 . Fabricators . | . . . Repair Stations . | . . . Recycling Units 4 | . 4 . Scanalyzers . | . . . Garrison Access . | . . . Terminal Hacks 3 | . 3 . Terminal Index 1 | . 1 . Hauler Manifests 1 | . 1 . Registered Components 1 | . 1 . Fabricator Hacks . | . . . Repair Station Hacks . | . . . Recycling Unit Hacks 2 | . 2 . Retrieve Components 2 | . 2 . Scanalyzer . | . . . Garrison Access Hacks . | . . . Unauthorized Hacks . | . . . Terminals . | . . . Fabricators . | . . . Repair Stations . | . . . Recycling Units . | . . . Scanalyzers . | . . . Garrison Access . | . . . Data Cores Recovered . | . . . Used . | . . . Hacking Detections 5 | . 5 . Full Trace Events 2 | . 2 . Feedback Events . | . . . Feedback Blocked . | . . . Robot Schematics Acquired . | . . . Robots Built . | . . . Authchips . | . . . Time . | . . . Total Robot Build Rating . | . . . Part Schematics Acquired . | . . . Parts Built . | . . . Authchips . | . . . Time . | . . . Total Part Build Rating . | . . . Part Studies Acquired . | . . . Parts Repaired . | . . . Time . | . . . Parts Recycled . | . . . Recycled Matter . | . . . Retrieved Matter . | . . . Retrieved Components 10 | . 10 . Parts Scanalyzed . | . . . Part Schematics Acquired . | . . . Parts Damaged . | . . . Bothacking | -11 -10 -9 ------------ Run | Yrd Mat Mat Used RIF Installer . | . . . Robots Hacked . | . . . Non-combat . | . . . Combat . | . . . Robot Hacks Applied . | . . . Relay Couplers Released . | . . . Fabnet Peak Effective % . | . . . Robots Rewired . | . . . Allies Hacked . | . . . Hacks Repelled . | . . . Allies | -11 -10 -9 -------- Run | Yrd Mat Mat Total Allies . | . . . Largest Group . | . . . Highest-Rated Group . | . . . Highest-Rated Ally . | . . . Total Orders . | . . . Ally Attacks . | . . . Total Damage . | . . . Kills . | . . . Allies Corrupted . | . . . Allies Melted . | . . . Intel | -11 -10 -9 ------- Run | Yrd Mat Mat Active Infowar (turns) 1525 | 27 1343 155 Seismic 1483 | 27 1301 155 T.N.C. 42 | . 42 . ECM 155 | . . 155 Robot Analysis Total . | . . . Derelict Logs Recovered . | . . . Drone Launches . | . . . Drone Recoveries . | . . . Exploration | -11 -10 -9 ------------- Run | Yrd Mat Mat Turns Passed 1809 | 154 1343 312 Spaces Moved 1330 | 100 903 327 Core 234 | 5 . 229 Treads 10 | 1 9 . Legs . | . . . Wheels 1086 | 94 894 98 Hover . | . . . Flight . | . . . Fastest Speed 50 | 50 90 50 Average Speed 104 | 97 114 78 Slowest Speed 240 | 160 240 150 Overloaded Moves . | . . . Propulsion Burnouts . | . . . Robots Hopped . | . . . Potential Cave-ins . | . . . Cave-ins Triggered . | . . . Exploration Rate (%) 40 | 4 90 26 Regions Visited 2 Branch Regions . Pre-discovered Areas . | . . . Known Exits Taken . | . . . Unknown Exits Taken 2 | 1 1 . Scrap Searched . | . . . Spaces Dug . | . . . Terrain Destroyed 145 | . 106 39 Melee . | . . . Projectile . | . . . AOE 145 | . 106 39 Terrain Rammed . | . . . Walls Destroyed . | . . . Machines Disabled . | . . . Actions | -11 -10 -9 --------- Run | Yrd Mat Mat Total 1568 | 128 1084 356 Wait 35 | . 34 1 Move 1328 | 99 902 327 Hop . | . . . Pick Up 32 | 8 22 2 Fast Attach 9 | 7 1 1 Attach 10 | . 5 5 Detach 1 | . 1 . Swap 14 | 1 11 2 Drop 9 | . 9 . Fire 113 | 13 96 4 Melee 8 | . . 8 Ram 5 | . . 5 Kick . | . . . Crush 4 | . 3 1 Escape Stasis . | . . . Rewire . | . . . Trap . | . . . Miscellaneous . | . . . Route ------- -11/Scrapyard -10/Materials (discovered 3 exits: [*Mat x2] / [*Min]) -9/Materials (discovered 1 exit: [*Sto]) History --------- Turn | Location | Event 29 | -11/Scrapyard | Discovered new exit (range 16) 155 | -11/Scrapyard | Entered Materials 233 | -10/Materials | Discovered new exit (range 12) 297 | -10/Materials | Discovered new exit (range 3) 306 | -10/Materials | Build established: Mutant 720 | -10/Materials | Core integrity fell below 50% 812 | -10/Materials | Lost 3 parts (2n1w) 914 | -10/Materials | Discovered new exit (range 15) 1498 | -10/Materials | Entered another Materials area 1498 | -9/Materials | Evolved 2 slots: Utility x2 1520 | -9/Materials | Discovered new exit (range 12) 1653 | -9/Materials | Released all parts (8) 1767 | -9/Materials | Core integrity fell below 50% 1795 | -9/Materials | Core integrity fell below 20% 1810 | -9/Materials | Destroyed by Y-45 Defender with Heavy Assault Rifle Last Messages --------------- 01776_ K-01 Serf collects debris. 01791_ G-34 Mercenary destroyed. 01793_ K-01 Serf collects debris. 01802_ Destroyed Heat Sink. 01802_ Y-45 Defender system corrupted by crushing effect. 01803_ Y-45 Defender IFF system glitched. 01803_ K-01 Serf collects debris. 01803_ Lgt. Treads destroyed. 01805_ Y-45 Defender suffers critical hit (Smash). 01805_ Destroyed Lgt. Treads. 01805_ Y-45 Defender system corrupted by crushing effect. 01806_ Y-45 Defender system terminally corrupted. 01806_ Lgt. Treads fried. 01806_ K-01 Serf collects debris. 01808_ Acquired 50 matter. 01809_ K-01 Serf collects debris. Map ----- +----------------------------------------------------+ | ????????????????? #??????????????????????????? | | ????????????????? #??????????????????????????? | | ??# ############ #???????????????????????????? | | ??# " + [ !# #???????????????????????????? | | ??# ## * # #???????????????????????????? | | ???????# = """ + #???????????????????????????? | | ???????# """ # #???????????????????????????? | | ???????#"S """ # #???????????????????????????? | | ???????#""" # #???????????????????????????? | | ???????# "" # #???????????????????????????? | | ???????# # #######??#??????????????????? | | ???????######## ## # #??????????????????? | | ??????????????#### # """ #??????????????????? | | ?????????????????# # """ #??????????????????? | | ?????????????????# # """ #??????????????????? | | ??????????######## !#[] #??????????????????? | | ??????????# *! # ]""" #??????????????????? | | ??????????# + """ #??????????????????? | | ??????????# !# """ #??????????????????? | | ??????????# ####Y w#== #??????????????????? | | ########### #??# ##########????#####?????????? | | # # #??# ||^ ##### #####?????? | | # """ """ # #??# ^ || | ????? | | # """ """ # #??# |^ ????? | | # """ """ # #??# | k t ????? | | # # #??# @ ##### ##????????? | | # + #??# k ^ """ #???????###?????????? | | # # #??# =%[""" #???????????????????? | | # # #??# """ #???????????????????? | | ########### #??# #???????????????????? | | ???# #??# / #???????????????????? | | ???# #??# k/^! ""#???????????????????? | | ???# #??# k/! T"#???????????????????? | | ???# ########??# ! a""#???????????????????? | | ???# #?????????# #???????????????????? | | ???# #?????????# #???????????????????? | | ???# ########??# #####+#####?????????????????? | | ???# #??# # #?????????????????? | | ???# #??# # """ #?????????????????? | | ???# #??# # """ #?????????????????? | | ???# ### ##?### # """ *[| #?????????????????? | | ???# #?# ###?# # *[| #?????????????????? | | ???# ### #?# # *|| #?????????????????? | | ???# ## ### # #?????????????????? | | ???# # # # ##+######+####?????????????????? | | ???# # # ##[[ #?# #????????????????????? | | ???# # ## ## [ """ #?# #????????????????????? | | ???# ## # """ #?# #????????????????????? | | ???# # # """ #?# #????????????????????? | | ???# # # < ### ###????????+#????????? | +----------------------------------------------------+ Best States ------------- Heat Dissipation 28 Energy Generation 10 Energy Capacity 250 Matter Stores 300 Matter Capacity 300 Sight Range 16 Terrain Scan Density 10 ECM Strength 1 Evasion (%) 50 Recoil Reduction 1 Trap Extractor Capacity 4 Item Schematics ----------------- None Robot Schematics ------------------ None Fabricated ------------ Nothing Repaired ---------- Nothing Studied --------- None Alien Tech Used ----------------- None Achievements -------------- Dramatic Entrance Challenges ------------ None Game ------ Seed PitchforkBehemothProtection Manual? 0 Play Time 00:22:47 Cumulative 31.7 hours Start 2026.04.07 @ 19:01:28 End 2026.04.07 @ 19:27:55 Sessions 1 Manual Loads 0 Difficulty Rogue Special Mode None Game No. 39 Rogue 39 Adventurer 0 Explorer 0 Win Type - Total 0 Types 0/0/0/0/0/0/0/0/0/0 Lore% 9 Gallery% 14 Achievement% 14 Wizard Run 0 Options --------- Layout 1 ASCII 0 Keyboard 1 Movement Arrows Keybinds 1 Fullscreen 1 Font 24/Smallcaps Map View 50x35 Zoom Use 0% Tactical HUD 1 Map Filters NONE Filters NONE Steam 1 RUN: 982f705d-ede2-4c2f-bce8-0f1d5d0e00b9